[Event "Late-Titled-Tuesday-Blitz-September-26-2023"]
[Site "Chess.com"]
[Date "2023.09.26"]
[Round "6"]
[White "Roedor"]
[Black "ukchessbomber"]
[Result "0-1"]
[WhiteElo "2386"]
[BlackElo "2671"]
[TimeControl "180+1"]
[EndTime "15:04:02 PDT"]
[Termination "ukchessbomber won by resignation"]

1. d4 {[%clk 0:02:52.9]} 1... b5 {[%clk 0:02:59.4]} 2. a4 {[%clk 0:02:50.5]}
2... b4 {[%clk 0:02:59.3]} 3. e4 {[%clk 0:02:47.3]} 3... Bb7 {[%clk 0:02:59.6]}
4. Bd3 {[%clk 0:02:47.3]} 4... e6 {[%clk 0:02:59.8]} 5. Nf3 {[%clk 0:02:46.5]}
5... d6 {[%clk 0:02:58.7]} 6. O-O {[%clk 0:02:46.3]} 6... Nd7 {[%clk 0:02:59.1]}
7. c3 {[%clk 0:02:46.4]} 7... bxc3 {[%clk 0:02:58.6]} 8. Nxc3 {[%clk 0:02:47.3]}
8... Be7 {[%clk 0:02:58.9]} 9. Re1 {[%clk 0:02:46.1]} 9... Ngf6 {[%clk 0:02:58]}
10. a5 {[%clk 0:02:38.6]} 10... a6 {[%clk 0:02:57.3]} 11. Bg5 {[%clk 0:02:33.6]}
11... O-O {[%clk 0:02:57.3]} 12. Qd2 {[%clk 0:02:33]} 12... c5 {[%clk
0:02:54.1]} 13. d5 {[%clk 0:01:58]} 13... e5 {[%clk 0:02:23.4]} 14. Reb1 {[%clk
0:01:44.1]} 14... Nh5 {[%clk 0:02:22]} 15. Bxe7 {[%clk 0:01:43.5]} 15... Qxe7
{[%clk 0:02:21.9]} 16. b4 {[%clk 0:01:41.8]} 16... cxb4 {[%clk 0:02:21.7]} 17.
Rxb4 {[%clk 0:01:41.4]} 17... Nc5 {[%clk 0:02:22.1]} 18. Rab1 {[%clk 0:01:38.5]}
18... Nf4 {[%clk 0:02:15.8]} 19. Bf1 {[%clk 0:01:35.9]} 19... f5 {[%clk
0:02:14.8]} 20. exf5 {[%clk 0:01:33.4]} 20... Rxf5 {[%clk 0:02:14.4]} 21. g3
{[%clk 0:01:17.8]} 21... Ng6 {[%clk 0:01:55.6]} 22. Bg2 {[%clk 0:01:14.2]} 22...
Raf8 {[%clk 0:01:55.1]} 23. Qd1 {[%clk 0:00:57.5]} 23... Bc8 {[%clk 0:01:22.6]}
24. Ne4 {[%clk 0:00:54.9]} 24... R5f7 {[%clk 0:00:36.3]} 25. Nxc5 {[%clk
0:00:50]} 25... dxc5 {[%clk 0:00:36.5]} 26. Re4 {[%clk 0:00:38.3]} 26... Bf5
{[%clk 0:00:34.5]} 27. Rxe5 {[%clk 0:00:37.1]} 27... Nxe5 {[%clk 0:00:34.1]} 28.
d6 {[%clk 0:00:35.4]} 28... Nxf3+ {[%clk 0:00:28.3]} 29. Bxf3 {[%clk 0:00:36.3]}
29... Qf6 {[%clk 0:00:28.5]} 30. Rb6 {[%clk 0:00:33.5]} 30... Bc2 {[%clk
0:00:24.6]} 31. Qxc2 {[%clk 0:00:32.6]} 31... Qxf3 {[%clk 0:00:24.3]} 32. Qxc5
{[%clk 0:00:29.8]} 32... Qxf2+ {[%clk 0:00:23.3]} 33. Qxf2 {[%clk 0:00:30]}
33... Rxf2 {[%clk 0:00:24.2]} 34. d7 {[%clk 0:00:30.2]} 34... Rf1+ {[%clk
0:00:24.5]} 35. Kg2 {[%clk 0:00:30.1]} 35... Rd1 {[%clk 0:00:25.4]} 36. Rb7
{[%clk 0:00:29.8]} 36... Rd8 {[%clk 0:00:25.4]} 37. Ra7 {[%clk 0:00:29.8]} 37...
R1xd7 {[%clk 0:00:26.3]} 38. Rxa6 {[%clk 0:00:30.3]} 38... Rd2+ {[%clk
0:00:26.8]} 39. Kh3 {[%clk 0:00:30.3]} 39... Ra2 {[%clk 0:00:27.7]} 40. Ra7
{[%clk 0:00:29.4]} 40... Rd5 {[%clk 0:00:26.2]} 41. a6 {[%clk 0:00:29.7]} 41...
Rda5 {[%clk 0:00:26]} 42. Kg4 {[%clk 0:00:30.1]} 42... Rxa6 {[%clk 0:00:25.9]}
43. Rb7 {[%clk 0:00:30.4]} 43... R2a4+ {[%clk 0:00:26.3]} 44. Kf5 {[%clk
0:00:29.5]} 44... R4a5+ {[%clk 0:00:26.2]} 45. Kg4 {[%clk 0:00:29.7]} 45... Rg6+
{[%clk 0:00:26.4]} 46. Kh4 {[%clk 0:00:29.4]} 46... Rh6+ {[%clk 0:00:26.8]} 47.
Kg4 {[%clk 0:00:29.7]} 47... Ra4+ {[%clk 0:00:27.2]} 48. Kg5 {[%clk 0:00:29.9]}
48... Ra8 {[%clk 0:00:25.4]} 49. h4 {[%clk 0:00:29.6]} 49... Rg6+ {[%clk
0:00:25.9]} 50. Kf4 {[%clk 0:00:29.7]} 50... Rf8+ {[%clk 0:00:26.3]} 51. Ke3
{[%clk 0:00:29.8]} 51... Rxg3+ {[%clk 0:00:26.9]} 0-1

[Event "Late-Titled-Tuesday-Blitz-September-26-2023"]
[Site "Chess.com"]
[Date "2023.09.26"]
[Round "6"]
[White "OparinGrigoriy"]
[Black "realmadridfc123"]
[Result "1-0"]
[WhiteElo "2981"]
[BlackElo "2786"]
[TimeControl "180+1"]
[EndTime "15:04:03 PDT"]
[Termination "OparinGrigoriy won by resignation"]

1. d4 {[%clk 0:03:00.9]} 1... d5 {[%clk 0:02:59.6]} 2. c4 {[%clk 0:03:01.4]}
2... e6 {[%clk 0:02:59.8]} 3. Nc3 {[%clk 0:03:02.1]} 3... Nf6 {[%clk 0:03:00.3]}
4. cxd5 {[%clk 0:03:02.6]} 4... exd5 {[%clk 0:03:00.7]} 5. Bg5 {[%clk
0:03:03.1]} 5... c6 {[%clk 0:03:01.3]} 6. e3 {[%clk 0:03:03.5]} 6... Bf5 {[%clk
0:03:01.8]} 7. Qf3 {[%clk 0:03:03.7]} 7... Bg6 {[%clk 0:03:01.6]} 8. Bxf6 {[%clk
0:03:04.4]} 8... Qxf6 {[%clk 0:03:02.5]} 9. Qxf6 {[%clk 0:03:04.7]} 9... gxf6
{[%clk 0:03:03.4]} 10. Nf3 {[%clk 0:03:05.5]} 10... Nd7 {[%clk 0:02:55.2]} 11.
Nh4 {[%clk 0:03:05.9]} 11... Nb6 {[%clk 0:02:50.3]} 12. f4 {[%clk 0:02:53]}
12... Be4 {[%clk 0:02:18]} 13. Nxe4 {[%clk 0:02:52.5]} 13... dxe4 {[%clk
0:02:18.9]} 14. Nf5 {[%clk 0:02:49.7]} 14... O-O-O {[%clk 0:02:17.2]} 15. O-O-O
{[%clk 0:02:46.7]} 15... h5 {[%clk 0:02:16.3]} 16. g3 {[%clk 0:02:44.6]} 16...
Re8 {[%clk 0:01:59.9]} 17. a3 {[%clk 0:02:37.6]} 17... Kc7 {[%clk 0:01:57.1]}
18. Kd2 {[%clk 0:02:35.7]} 18... a5 {[%clk 0:01:50.5]} 19. Rc1 {[%clk 0:02:35]}
19... Nc8 {[%clk 0:01:35.8]} 20. Bh3 {[%clk 0:02:28]} 20... Nd6 {[%clk
0:01:35.6]} 21. Ke2 {[%clk 0:02:20.5]} 21... h4 {[%clk 0:01:13.5]} 22. Nxd6
{[%clk 0:02:20.3]} 22... Bxd6 {[%clk 0:01:09.2]} 23. g4 {[%clk 0:02:20.8]} 23...
Rhg8 {[%clk 0:00:59]} 24. d5 {[%clk 0:02:14.4]} 24... c5 {[%clk 0:00:57.6]} 25.
a4 {[%clk 0:02:14.4]} 25... b5 {[%clk 0:00:50.5]} 26. axb5 {[%clk 0:02:14.3]}
26... Rb8 {[%clk 0:00:51.3]} 27. Rc4 {[%clk 0:02:10.5]} 27... Rxb5 {[%clk
0:00:51.3]} 28. Rxe4 {[%clk 0:02:10.7]} 28... Rxb2+ {[%clk 0:00:51.6]} 29. Kf3
{[%clk 0:02:11.4]} 29... Ra8 {[%clk 0:00:45.8]} 30. Ra4 {[%clk 0:02:06.4]} 30...
Rd2 {[%clk 0:00:45.8]} 31. Bf1 {[%clk 0:01:48.7]} 31... Rxd5 {[%clk 0:00:23.5]}
32. Bc4 {[%clk 0:01:48.8]} 32... Rd2 {[%clk 0:00:23.4]} 33. Bxf7 {[%clk
0:01:45.8]} 33... h3 {[%clk 0:00:19.7]} 34. Ke4 {[%clk 0:01:24.1]} 34... Rf8
{[%clk 0:00:18.7]} 35. Be6 {[%clk 0:01:20.5]} 35... Ra8 {[%clk 0:00:14.9]} 36.
Kf5 {[%clk 0:01:20.2]} 36... Re2 {[%clk 0:00:15.3]} 37. e4 {[%clk 0:01:20.2]}
37... Rf2 {[%clk 0:00:14.7]} 38. Kxf6 {[%clk 0:01:16.3]} 38... Rxf4+ {[%clk
0:00:14.8]} 39. Bf5 {[%clk 0:01:17]} 39... Rf2 {[%clk 0:00:12.9]} 40. e5 {[%clk
0:01:15.8]} 40... Rf8+ {[%clk 0:00:11.2]} 41. Kg7 {[%clk 0:01:16.3]} 41... Be7
{[%clk 0:00:11.3]} 42. Rxa5 {[%clk 0:01:16]} 42... Kb6 {[%clk 0:00:05.7]} 43.
Ra3 {[%clk 0:01:09.3]} 43... R8xf5 {[%clk 0:00:06]} 44. gxf5 {[%clk 0:01:05.8]}
44... Rxf5 {[%clk 0:00:06.9]} 45. e6 {[%clk 0:01:04.1]} 45... c4 {[%clk
0:00:05.7]} 46. Rxh3 {[%clk 0:01:03.9]} 46... Kc6 {[%clk 0:00:06.3]} 47. Rd1
{[%clk 0:01:03.1]} 47... Rf6 {[%clk 0:00:04.8]} 48. Re3 {[%clk 0:01:02.9]} 48...
Rf2 {[%clk 0:00:04.3]} 49. h3 {[%clk 0:00:58.2]} 49... Bd6 {[%clk 0:00:03.3]}
50. e7 {[%clk 0:00:57.6]} 50... Rg2+ {[%clk 0:00:04.2]} 51. Kf7 {[%clk
0:00:55.2]} 1-0

[Event "Late-Titled-Tuesday-Blitz-September-26-2023"]
[Site "Chess.com"]
[Date "2023.09.26"]
[Round "6"]
[White "jup1978"]
[Black "Zampronha1971"]
[Result "0-1"]
[WhiteElo "2443"]
[BlackElo "2293"]
[TimeControl "180+1"]
[EndTime "15:04:06 PDT"]
[Termination "Zampronha1971 won on time"]

1. d4 {[%clk 0:03:00.9]} 1... Nf6 {[%clk 0:02:59.8]} 2. Nf3 {[%clk 0:03:01]}
2... e6 {[%clk 0:03:00]} 3. g3 {[%clk 0:03:00.6]} 3... d5 {[%clk 0:02:57]} 4.
Bg2 {[%clk 0:02:58]} 4... Be7 {[%clk 0:02:57.6]} 5. c4 {[%clk 0:02:58.5]} 5...
c6 {[%clk 0:02:57]} 6. O-O {[%clk 0:02:58.8]} 6... O-O {[%clk 0:02:57.3]} 7. Nc3
{[%clk 0:02:55.2]} 7... Nbd7 {[%clk 0:02:57.7]} 8. Qd3 {[%clk 0:02:54.8]} 8...
b6 {[%clk 0:02:57.5]} 9. e4 {[%clk 0:02:54.1]} 9... Ba6 {[%clk 0:02:57.1]} 10.
b3 {[%clk 0:02:53.7]} 10... Rc8 {[%clk 0:02:53]} 11. e5 {[%clk 0:02:53.7]} 11...
Ne8 {[%clk 0:02:52.5]} 12. Rd1 {[%clk 0:02:45.1]} 12... c5 {[%clk 0:02:52.6]}
13. dxc5 {[%clk 0:02:35.8]} 13... bxc5 {[%clk 0:02:48.1]} 14. Qd2 {[%clk
0:02:31.1]} 14... d4 {[%clk 0:02:46.9]} 15. Ne4 {[%clk 0:02:28.2]} 15... Bb7
{[%clk 0:02:42.6]} 16. Qf4 {[%clk 0:02:19.6]} 16... Qc7 {[%clk 0:02:31.5]} 17.
h4 {[%clk 0:02:17.1]} 17... h6 {[%clk 0:02:18.7]} 18. g4 {[%clk 0:02:03.3]}
18... a5 {[%clk 0:02:08]} 19. g5 {[%clk 0:02:01.9]} 19... h5 {[%clk 0:02:04.2]}
20. Nf6+ {[%clk 0:01:41.3]} 20... gxf6 {[%clk 0:02:03]} 21. gxf6 {[%clk
0:01:41.3]} 21... Bxf6 {[%clk 0:01:59]} 22. Qh6 {[%clk 0:01:24.4]} 22... Nxe5
{[%clk 0:01:43.3]} 23. Nxe5 {[%clk 0:00:59.1]} 23... Bxg2 {[%clk 0:01:38.8]} 24.
Kxg2 {[%clk 0:00:51]} 24... Qxe5 {[%clk 0:01:38.2]} 25. Bf4 {[%clk 0:00:44.1]}
25... Qf5 {[%clk 0:01:33.2]} 26. Kh2 {[%clk 0:00:41.6]} 26... e5 {[%clk
0:01:23]} 27. Rg1+ {[%clk 0:00:40.7]} 27... Bg7 {[%clk 0:01:20.9]} 28. Bd2
{[%clk 0:00:28.8]} 28... Qxf2+ {[%clk 0:00:58.8]} 29. Rg2 {[%clk 0:00:20.4]}
29... Qxh4+ {[%clk 0:00:57.6]} 30. Kg1 {[%clk 0:00:20.5]} 30... Qf6 {[%clk
0:00:52.7]} 31. Qxh5 {[%clk 0:00:19]} 31... Rc6 {[%clk 0:00:50.8]} 32. Rf1
{[%clk 0:00:16.5]} 32... Qe7 {[%clk 0:00:40.6]} 33. Rf3 {[%clk 0:00:11.2]} 33...
Rg6 {[%clk 0:00:39.5]} 34. Rfg3 {[%clk 0:00:09.6]} 34... Rxg3 {[%clk 0:00:37.8]}
35. Rxg3 {[%clk 0:00:10.5]} 35... f5 {[%clk 0:00:35.4]} 36. Bh6 {[%clk
0:00:08.5]} 36... Rf7 {[%clk 0:00:35.1]} 37. Qg6 {[%clk 0:00:03.1]} 37... e4
{[%clk 0:00:28.8]} 38. Rh3 {[%clk 0:00:02.7]} 38... e3 {[%clk 0:00:26.9]} 39.
Bg5 {[%clk 0:00:02.3]} 39... e2 {[%clk 0:00:22.3]} 0-1

[Event "Late-Titled-Tuesday-Blitz-September-26-2023"]
[Site "Chess.com"]
[Date "2023.09.26"]
[Round "6"]
[White "YEIKO2017"]
[Black "Rodalquilar"]
[Result "1-0"]
[WhiteElo "2481"]
[BlackElo "2724"]
[TimeControl "180+1"]
[EndTime "15:04:07 PDT"]
[Termination "YEIKO2017 won by checkmate"]

1. e4 {[%clk 0:03:00.9]} 1... d5 {[%clk 0:02:59.8]} 2. exd5 {[%clk 0:03:00]}
2... Qxd5 {[%clk 0:03:00.7]} 3. Nc3 {[%clk 0:03:00.1]} 3... Qa5 {[%clk 0:03:01]}
4. b4 {[%clk 0:03:00.6]} 4... Qxb4 {[%clk 0:03:01]} 5. Rb1 {[%clk 0:03:01.2]}
5... Qd6 {[%clk 0:03:01.3]} 6. Nf3 {[%clk 0:03:01.8]} 6... Qd8 {[%clk
0:03:00.6]} 7. d4 {[%clk 0:03:00]} 7... c6 {[%clk 0:03:01]} 8. Bd3 {[%clk
0:02:58.7]} 8... Nf6 {[%clk 0:03:01.4]} 9. O-O {[%clk 0:02:59.1]} 9... e6 {[%clk
0:03:01.7]} 10. Ne4 {[%clk 0:02:49.2]} 10... Nbd7 {[%clk 0:02:58]} 11. c4 {[%clk
0:02:39.3]} 11... Be7 {[%clk 0:02:56.7]} 12. Rb3 {[%clk 0:02:34.1]} 12... O-O
{[%clk 0:02:56.3]} 13. Bf4 {[%clk 0:02:19.1]} 13... Nxe4 {[%clk 0:02:53.9]} 14.
Bxe4 {[%clk 0:02:18.5]} 14... Nf6 {[%clk 0:02:53.9]} 15. Bc2 {[%clk 0:02:17.1]}
15... c5 {[%clk 0:02:44]} 16. Rd3 {[%clk 0:02:07.4]} 16... cxd4 {[%clk
0:02:39.4]} 17. Rxd4 {[%clk 0:02:06.5]} 17... Qa5 {[%clk 0:02:39.1]} 18. Ne5
{[%clk 0:02:05.2]} 18... Rd8 {[%clk 0:02:20.1]} 19. Rxd8+ {[%clk 0:01:51.7]}
19... Qxd8 {[%clk 0:02:20.3]} 20. Qf3 {[%clk 0:01:44.4]} 20... Qa5 {[%clk
0:02:06.8]} 21. Rd1 {[%clk 0:01:36.8]} 21... Qxa2 {[%clk 0:02:05.6]} 22. Qd3
{[%clk 0:01:25.1]} 22... Qa3 {[%clk 0:01:38.4]} 23. Qxa3 {[%clk 0:01:00.1]}
23... Bxa3 {[%clk 0:01:38.4]} 24. Rd8+ {[%clk 0:01:00.9]} 24... Bf8 {[%clk
0:01:39.1]} 25. c5 {[%clk 0:00:55.9]} 25... Nd5 {[%clk 0:00:40.5]} 26. Bc1
{[%clk 0:00:52.4]} 26... f6 {[%clk 0:00:37.6]} 27. Nc4 {[%clk 0:00:37.9]} 27...
Nb4 {[%clk 0:00:21.3]} 28. Bxh7+ {[%clk 0:00:27.2]} 28... Kf7 {[%clk 0:00:15.1]}
29. Nd6+ {[%clk 0:00:23.2]} 29... Bxd6 {[%clk 0:00:15.1]} 30. cxd6 {[%clk
0:00:23.9]} 30... Nc6 {[%clk 0:00:14.5]} 31. Rh8 {[%clk 0:00:20.3]} 31... Rb8
{[%clk 0:00:10]} 32. Bg8+ {[%clk 0:00:14.9]} 32... Kg6 {[%clk 0:00:10.4]} 33.
Bh7+ {[%clk 0:00:11.2]} 33... Kf7 {[%clk 0:00:10.8]} 34. Bg8+ {[%clk 0:00:11.4]}
34... Kg6 {[%clk 0:00:10.4]} 35. Bh7+ {[%clk 0:00:11.8]} 35... Kh5 {[%clk
0:00:10.9]} 36. Be4+ {[%clk 0:00:09.1]} 36... Kg4 {[%clk 0:00:10.2]} 37. h3#
{[%clk 0:00:08]} 1-0

[Event "Late-Titled-Tuesday-Blitz-September-26-2023"]
[Site "Chess.com"]
[Date "2023.09.26"]
[Round "6"]
[White "midedu"]
[Black "PapaieDudu"]
[Result "1-0"]
[WhiteElo "2045"]
[BlackElo "2405"]
[TimeControl "180+1"]
[EndTime "15:04:15 PDT"]
[Termination "midedu won by checkmate"]

1. e4 {[%clk 0:03:00.9]} 1... c5 {[%clk 0:02:59]} 2. Nc3 {[%clk 0:03:00.4]} 2...
e6 {[%clk 0:02:58.8]} 3. g3 {[%clk 0:03:01.1]} 3... d5 {[%clk 0:02:58.7]} 4.
exd5 {[%clk 0:03:00.9]} 4... exd5 {[%clk 0:02:59.6]} 5. d4 {[%clk 0:03:01.3]}
5... Nc6 {[%clk 0:02:50.6]} 6. Nge2 {[%clk 0:02:59.9]} 6... Bg4 {[%clk
0:02:37.4]} 7. Be3 {[%clk 0:02:54.9]} 7... Bf3 {[%clk 0:02:33.5]} 8. Rg1 {[%clk
0:02:54.5]} 8... Qb6 {[%clk 0:01:44.5]} 9. Na4 {[%clk 0:02:16.2]} 9... Qa5+
{[%clk 0:01:40.2]} 10. c3 {[%clk 0:02:15.9]} 10... Rd8 {[%clk 0:01:24.3]} 11.
Bg2 {[%clk 0:01:05.5]} 11... Bxe2 {[%clk 0:01:21.2]} 12. Kxe2 {[%clk 0:01:04.9]}
12... Qb5+ {[%clk 0:01:17.2]} 13. Kf3 {[%clk 0:00:39.4]} 13... b6 {[%clk
0:01:04.1]} 14. Re1 {[%clk 0:00:27.6]} 14... Be7 {[%clk 0:01:01.3]} 15. Qb3
{[%clk 0:00:26]} 15... Qa5 {[%clk 0:00:51.4]} 16. dxc5 {[%clk 0:00:19]} 16...
Ne5+ {[%clk 0:00:45.5]} 17. Ke2 {[%clk 0:00:15.7]} 17... Qa6+ {[%clk 0:00:44.5]}
18. Kd1 {[%clk 0:00:14.5]} 18... Nc4 {[%clk 0:00:27.6]} 19. cxb6 {[%clk
0:00:11.6]} 19... Qxa4 {[%clk 0:00:18.6]} 20. Qxa4+ {[%clk 0:00:10.2]} 20... Kf8
{[%clk 0:00:16.6]} 21. Kc2 {[%clk 0:00:09.8]} 21... Nf6 {[%clk 0:00:16.1]} 22.
bxa7 {[%clk 0:00:09.6]} 22... Ra8 {[%clk 0:00:12.7]} 23. Bd4 {[%clk 0:00:09.2]}
23... h5 {[%clk 0:00:06.1]} 24. b3 {[%clk 0:00:08.2]} 24... Nd6 {[%clk
0:00:05.7]} 25. Qa6 {[%clk 0:00:07.7]} 25... Rh6 {[%clk 0:00:03.4]} 26. Rxe7
{[%clk 0:00:06.9]} 26... Kxe7 {[%clk 0:00:03.1]} 27. Re1+ {[%clk 0:00:06.9]}
27... Nfe4 {[%clk 0:00:03.1]} 28. Bxe4 {[%clk 0:00:06.2]} 28... Nxe4 {[%clk
0:00:03]} 29. Qb7+ {[%clk 0:00:05.4]} 29... Kf8 {[%clk 0:00:02.7]} 30. Qxa8+
{[%clk 0:00:05.7]} 30... Ke7 {[%clk 0:00:03.2]} 31. Qxd5 {[%clk 0:00:05.8]}
31... Re6 {[%clk 0:00:03.5]} 32. a8=Q {[%clk 0:00:05.3]} 32... Nd6 {[%clk
0:00:02.8]} 33. Qa7+ {[%clk 0:00:04.7]} 33... Kf8 {[%clk 0:00:02.6]} 34. Rxe6
{[%clk 0:00:05]} 34... Ne8 {[%clk 0:00:02.6]} 35. Rxe8+ {[%clk 0:00:04.7]} 35...
Kxe8 {[%clk 0:00:03.2]} 36. Qdxf7+ {[%clk 0:00:05.2]} 36... Kd8 {[%clk
0:00:03.7]} 37. Qfd7# {[%clk 0:00:05.9]} 1-0

[Event "Late-Titled-Tuesday-Blitz-September-26-2023"]
[Site "Chess.com"]
[Date "2023.09.26"]
[Round "6"]
[White "Andrej2004"]
[Black "Mops_2004"]
[Result "1-0"]
[WhiteElo "2584"]
[BlackElo "2764"]
[TimeControl "180+1"]
[EndTime "15:04:16 PDT"]
[Termination "Andrej2004 won by resignation"]

1. Nf3 {[%clk 0:02:21.1]} 1... g6 {[%clk 0:02:59.3]} 2. c4 {[%clk 0:02:19.3]}
2... Bg7 {[%clk 0:02:59.6]} 3. g3 {[%clk 0:02:18.1]} 3... Nf6 {[%clk 0:02:59.2]}
4. Bg2 {[%clk 0:02:18.8]} 4... O-O {[%clk 0:02:59.9]} 5. O-O {[%clk 0:02:19.5]}
5... d6 {[%clk 0:03:00.6]} 6. d3 {[%clk 0:02:19.6]} 6... e5 {[%clk 0:03:00.3]}
7. Nc3 {[%clk 0:02:19.8]} 7... Nc6 {[%clk 0:03:00.6]} 8. Rb1 {[%clk 0:02:18.5]}
8... a5 {[%clk 0:03:00.8]} 9. Nd5 {[%clk 0:02:18.4]} 9... Nxd5 {[%clk
0:02:55.2]} 10. cxd5 {[%clk 0:02:19.3]} 10... Nb4 {[%clk 0:02:48.2]} 11. Qb3
{[%clk 0:02:06.6]} 11... c6 {[%clk 0:02:46.2]} 12. dxc6 {[%clk 0:02:03.4]} 12...
Be6 {[%clk 0:02:33]} 13. Qa4 {[%clk 0:02:02]} 13... Nxc6 {[%clk 0:02:12.6]} 14.
Be3 {[%clk 0:01:57.8]} 14... Qd7 {[%clk 0:02:09.1]} 15. Rfc1 {[%clk 0:01:52]}
15... Nd4 {[%clk 0:02:02.3]} 16. Qxd7 {[%clk 0:01:50.5]} 16... Bxd7 {[%clk
0:01:55.5]} 17. Nxd4 {[%clk 0:01:48.4]} 17... exd4 {[%clk 0:01:55.5]} 18. Bf4
{[%clk 0:01:48.4]} 18... Rfe8 {[%clk 0:01:43.4]} 19. Kf1 {[%clk 0:01:38.2]}
19... Bg4 {[%clk 0:01:30.2]} 20. Rc2 {[%clk 0:01:34]} 20... Be5 {[%clk
0:01:08.8]} 21. Bxb7 {[%clk 0:01:23.1]} 21... Rab8 {[%clk 0:01:07.3]} 22. Bg2
{[%clk 0:01:15.1]} 22... Be6 {[%clk 0:00:57.5]} 23. b3 {[%clk 0:01:01.9]} 23...
a4 {[%clk 0:00:55.7]} 24. b4 {[%clk 0:01:01.6]} 24... a3 {[%clk 0:00:49.6]} 25.
b5 {[%clk 0:01:00.4]} 25... Rb6 {[%clk 0:00:35.4]} 26. Bc1 {[%clk 0:00:55.9]}
26... Re7 {[%clk 0:00:24]} 27. f4 {[%clk 0:00:32.9]} 27... Bf6 {[%clk
0:00:21.6]} 28. Bc6 {[%clk 0:00:18.8]} 28... Ra7 {[%clk 0:00:11.2]} 29. Bd2
{[%clk 0:00:19.1]} 29... h5 {[%clk 0:00:06.6]} 30. Bb4 {[%clk 0:00:19.1]} 30...
Be7 {[%clk 0:00:06]} 31. Ke1 {[%clk 0:00:18.4]} 31... h4 {[%clk 0:00:05]} 32.
Kf2 {[%clk 0:00:18.4]} 32... hxg3+ {[%clk 0:00:04.7]} 33. hxg3 {[%clk
0:00:19.3]} 33... Kg7 {[%clk 0:00:04.5]} 34. Kf3 {[%clk 0:00:19.3]} 34... Bf5
{[%clk 0:00:03.7]} 35. Rb3 {[%clk 0:00:17]} 35... Bd7 {[%clk 0:00:02.8]} 36.
Rxa3 {[%clk 0:00:16.8]} 36... Rxa3 {[%clk 0:00:02.4]} 37. Bxa3 {[%clk
0:00:17.7]} 37... Be6 {[%clk 0:00:02.3]} 38. Bb4 {[%clk 0:00:16.7]} 38... Rb8
{[%clk 0:00:02]} 39. Ba5 {[%clk 0:00:15.9]} 39... g5 {[%clk 0:00:02.7]} 40. Bc7
{[%clk 0:00:16.1]} 40... Bf6 {[%clk 0:00:03.1]} 41. Bxb8 {[%clk 0:00:15.6]} 1-0

[Event "Late-Titled-Tuesday-Blitz-September-26-2023"]
[Site "Chess.com"]
[Date "2023.09.26"]
[Round "6"]
[White "KaydenTroffChess"]
[Black "Kostukov_Alex"]
[Result "1-0"]
[WhiteElo "2764"]
[BlackElo "2409"]
[TimeControl "180+1"]
[EndTime "15:04:17 PDT"]
[Termination "KaydenTroffChess won on time"]

1. d4 {[%clk 0:02:59.9]} 1... g6 {[%clk 0:02:57.4]} 2. c4 {[%clk 0:02:59.7]}
2... Bg7 {[%clk 0:02:55.4]} 3. Nc3 {[%clk 0:02:59]} 3... d6 {[%clk 0:02:56]} 4.
e4 {[%clk 0:02:58.1]} 4... e5 {[%clk 0:02:56.3]} 5. dxe5 {[%clk 0:02:52.2]} 5...
dxe5 {[%clk 0:02:57.2]} 6. Qxd8+ {[%clk 0:02:50.8]} 6... Kxd8 {[%clk 0:02:57]}
7. Be3 {[%clk 0:02:45]} 7... Be6 {[%clk 0:02:53.3]} 8. Nf3 {[%clk 0:02:42.1]}
8... f6 {[%clk 0:02:52.5]} 9. Be2 {[%clk 0:02:38.9]} 9... Nd7 {[%clk 0:02:51.9]}
10. O-O {[%clk 0:02:38.2]} 10... Bh6 {[%clk 0:02:52]} 11. Bxh6 {[%clk
0:02:30.7]} 11... Nxh6 {[%clk 0:02:51.9]} 12. Rfd1 {[%clk 0:02:30.6]} 12... c6
{[%clk 0:02:51.1]} 13. b4 {[%clk 0:02:29.4]} 13... Ke7 {[%clk 0:02:45]} 14. Rab1
{[%clk 0:02:13]} 14... a5 {[%clk 0:02:29.5]} 15. bxa5 {[%clk 0:02:04.7]} 15...
Nc5 {[%clk 0:02:29.4]} 16. a6 {[%clk 0:01:36.2]} 16... Rxa6 {[%clk 0:02:27.3]}
17. Nd5+ {[%clk 0:01:05.5]} 17... cxd5 {[%clk 0:02:19.8]} 18. cxd5 {[%clk
0:01:06.4]} 18... Bc8 {[%clk 0:02:10.6]} 19. Bxa6 {[%clk 0:01:05.1]} 19... Nxa6
{[%clk 0:02:05.8]} 20. Rb6 {[%clk 0:01:02.3]} 20... Nf7 {[%clk 0:02:04.7]} 21.
d6+ {[%clk 0:00:49.4]} 21... Kd7 {[%clk 0:01:55.6]} 22. Nd2 {[%clk 0:00:49]}
22... Rd8 {[%clk 0:01:43.2]} 23. Nc4 {[%clk 0:00:46.9]} 23... Nc5 {[%clk
0:01:36]} 24. Rb5 {[%clk 0:00:33.8]} 24... Nxe4 {[%clk 0:01:32.1]} 25. Nb6+
{[%clk 0:00:27.7]} 25... Kc6 {[%clk 0:01:22.5]} 26. Rb4 {[%clk 0:00:26.1]} 26...
Nc5 {[%clk 0:01:21.6]} 27. Rc1 {[%clk 0:00:14.9]} 27... Kxd6 {[%clk 0:01:10.3]}
28. Rbc4 {[%clk 0:00:15.2]} 28... Be6 {[%clk 0:00:22.8]} 29. Rxc5 {[%clk
0:00:14.2]} 29... Bxa2 {[%clk 0:00:18.7]} 30. R5c2 {[%clk 0:00:14.8]} 30... Be6
{[%clk 0:00:17.1]} 31. Rd1+ {[%clk 0:00:15.1]} 31... Ke7 {[%clk 0:00:17.1]} 32.
Rc7+ {[%clk 0:00:15.8]} 32... Ke8 {[%clk 0:00:16.4]} 33. Rxd8+ {[%clk
0:00:16.3]} 33... Kxd8 {[%clk 0:00:15.6]} 34. Rxb7 {[%clk 0:00:16.7]} 34... Ke8
{[%clk 0:00:15.8]} 35. f3 {[%clk 0:00:15.2]} 35... h5 {[%clk 0:00:15]} 36. Rb8+
{[%clk 0:00:15.5]} 36... Ke7 {[%clk 0:00:14.9]} 37. h4 {[%clk 0:00:15.1]} 37...
g5 {[%clk 0:00:14.6]} 38. hxg5 {[%clk 0:00:16]} 38... fxg5 {[%clk 0:00:14.8]}
39. Na4 {[%clk 0:00:16.2]} 39... Kf6 {[%clk 0:00:14.1]} 40. Nc5 {[%clk
0:00:16.4]} 40... Bc4 {[%clk 0:00:14]} 41. Rb6+ {[%clk 0:00:16.6]} 41... Kf5
{[%clk 0:00:13.4]} 42. Ne4 {[%clk 0:00:17.3]} 42... Kf4 {[%clk 0:00:12]} 43. Kf2
{[%clk 0:00:16.8]} 1-0